bitfinex/quotes_BTCUSD_20251016
["timestamp","ask_amount","ask_price","bid_price","bid_amount"]
[1760615532393,0.52172518,111380.0,111370.0,0.17967141]
[1760615532620,0.43255973,111380.0,111370.0,0.17967141]
[1760615532842,0.01,111380.0,111370.0,0.17967141]
[1760615533108,0.11891785,111390.0,111380.0,0.17956545]
[1760615533335,0.69224177,111390.0,111380.0,0.17956545]
[1760615533559,0.42233244,111390.0,111380.0,0.17956545]
[1760615533835,0.60031798,111390.0,111380.0,0.17956545]
[1760615534062,0.42076865,111390.0,111380.0,0.17956545]
[1760615534511,0.42076865,111390.0,111380.0,0.19752199]
[1760615534736,0.60031798,111390.0,111380.0,0.17956545]
[1760615535427,0.60031798,111390.0,111370.0,0.35972153]
[1760615535677,0.56334004,111380.0,111370.0,0.35972153]
[1760615536348,0.38377459,111380.0,111370.0,0.35972153]
[1760615536568,0.20654339,111390.0,111370.0,0.26936153]
[1760615536794,0.38377459,111380.0,111370.0,0.26936153]
[1760615537032,0.56334004,111380.0,111370.0,0.26936153]
[1760615537253,0.38377459,111380.0,111370.0,0.27036153]
[1760615537501,0.38377459,111380.0,111370.0,0.26936153]
[1760615537685,0.56334004,111380.0,111370.0,0.26936153]
[1760615538141,0.38377459,111380.0,111370.0,0.26936153]
[1760615538807,0.38377459,111380.0,111370.0,0.27036153]
[1760615539032,0.56334004,111380.0,111370.0,0.27036153]
[1760615539250,0.57334004,111380.0,111370.0,0.27036153]
[1760615539467,0.39377459,111380.0,111370.0,0.27036153]
[1760615539701,0.01,111380.0,111370.0,0.27036153]
[1760615539920,0.39377459,111380.0,111370.0,0.27036153]
[1760615540797,0.39368237,111380.0,111370.0,0.27036153]
[1760615542014,0.01,111380.0,111370.0,0.27036153]
[1760615544121,0.59178948,111390.0,111380.0,0.17956545]
[1760615544301,0.64178948,111390.0,111380.0,0.17956545]
[1760615545873,0.02855778,111390.0,111380.0,0.17956545]
[1760615546082,0.00156372,111390.0,111380.0,0.19752199]
[1760615546338,0.00156372,111390.0,111380.0,0.17956545]
[1760615546760,0.68955559,111400.0,111390.0,0.17954933]
[1760615546982,0.74955559,111400.0,111390.0,0.17954933]
[1760615547421,0.65919559,111400.0,111390.0,0.17954933]
[1760615547656,0.74955559,111400.0,111380.0,0.17956545]
[1760615547878,0.17954933,111390.0,111380.0,0.17956545]
[1760615548557,0.5632317,111390.0,111380.0,0.17956545]
[1760615548749,0.38368237,111390.0,111380.0,0.17956545]
[1760615549276,0.5632317,111390.0,111380.0,0.17956545]
[1760615550974,0.5732317,111390.0,111380.0,0.17956545]
[1760615551227,0.5732317,111390.0,111370.0,0.2783406]
[1760615551463,0.38368237,111380.0,111370.0,0.2783406]
[1760615553982,0.38368237,111380.0,111370.0,0.2793406]
[1760615554189,0.39368237,111380.0,111370.0,0.2793406]
[1760615554749,0.57324782,111380.0,111370.0,0.2793406]
[1760615554955,0.39368237,111380.0,111370.0,0.2793406]
[1760615557317,0.01,111380.0,111370.0,0.2793406]
[1760615557530,0.39368237,111380.0,111370.0,0.2793406]
[1760615557929,0.01,111380.0,111370.0,0.2793406]
[1760615558161,0.39368237,111380.0,111370.0,0.2793406]
[1760615559506,0.01,111380.0,111370.0,0.2793406]
[1760615559727,0.39368237,111380.0,111370.0,0.2793406]
[1760615561449,0.01,111380.0,111370.0,0.2793406]
[1760615562264,0.53061127,111380.0,111370.0,0.09077996]
[1760615562507,0.53061127,111380.0,111370.0,0.00108984]
[1760615563095,0.53061127,111380.0,111370.0,0.18067141]
[1760615563342,0.53217505,111380.0,111370.0,0.00108984]
[1760615563726,0.53217505,111380.0,111370.0,0.18067141]
[1760615563949,0.19112923,111380.0,111370.0,0.17967141]
[1760615564181,0.19112923,111380.0,111370.0,0.19762956]
[1760615566139,0.01156378,111380.0,111370.0,0.19762956]
[1760615568097,0.19112923,111380.0,111370.0,0.19762956]
[1760615568319,0.01156378,111380.0,111370.0,0.19762956]
[1760615569877,0.00156378,111380.0,111370.0,0.19762956]
[1760615570574,0.00156378,111380.0,111370.0,0.28798956]
[1760615570806,0.00156378,111380.0,111370.0,0.17967141]
[1760615571040,0.00156378,111380.0,111370.0,0.28798956]
[1760615571263,0.00156378,111380.0,111370.0,0.27003141]
[1760615571711,0.00156378,111380.0,111370.0,0.17967141]
[1760615571954,0.00156378,111380.0,111370.0,0.28798956]
[1760615572182,0.00156378,111380.0,111370.0,0.27003141]
[1760615572612,0.00156378,111380.0,111370.0,0.35972153]
[1760615573138,0.00156378,111380.0,111370.0,0.26936153]
[1760615573389,0.00156378,111380.0,111370.0,0.35972153]
[1760615574087,0.00156378,111380.0,111370.0,0.26936153]
[1760615574294,0.00156378,111380.0,111370.0,0.35972153]
[1760615574948,0.18112923,111380.0,111370.0,0.35972153]
[1760615575197,0.00156378,111380.0,111370.0,0.35972153]
[1760615575412,0.00156378,111380.0,111370.0,0.26936153]
[1760615576528,0.18112923,111380.0,111370.0,0.26936153]
[1760615576749,0.00156378,111380.0,111370.0,0.26936153]
[1760615580499,0.3426096,111380.0,111370.0,0.26936153]
[1760615581371,0.52217505,111380.0,111370.0,0.26936153]
[1760615582288,0.28649821,111380.0,111370.0,0.26936153]
[1760615583382,0.30649821,111380.0,111370.0,8.984e-05]
[1760615583606,5.91133546,111380.0,111370.0,8.984e-05]
[1760615583819,5.94456371,111380.0,111370.0,8.984e-05]
[1760615584243,5.96397773,111380.0,111370.0,8.984e-05]
[1760615586194,5.9655418,111380.0,111370.0,8.984e-05]
[1760615587770,6.19965486,111380.0,111370.0,8.984e-05]
[1760615588167,6.10929486,111380.0,111370.0,8.984e-05]
[1760615588449,6.19965486,111380.0,111370.0,8.984e-05]
[1760615590607,6.08076039,111380.0,111370.0,8.984e-05]
[1760615590816,6.17112039,111380.0,111370.0,8.984e-05]
[1760615593394,0.08185415,111380.0,111370.0,0.17967141]
[1760615593603,0.02625785,111380.0,111370.0,0.17967141]
[1760615594112,0.54530505,111380.0,111370.0,8.984e-05]
[1760615594324,5.67117745,111380.0,111370.0,8.984e-05]
[1760615594533,6.03971192,111380.0,111370.0,8.984e-05]
[1760615594838,6.1487546,111380.0,111370.0,8.984e-05]
[1760615596300,6.17552357,111380.0,111370.0,8.984e-05]
[1760615596771,6.20409371,111380.0,111370.0,8.984e-05]
[1760615596999,6.26069073,111380.0,111370.0,8.984e-05]
[1760615600375,6.23215626,111380.0,111370.0,8.984e-05]
[1760615600582,6.19976195,111380.0,111370.0,8.984e-05]
[1760615601205,6.17299298,111380.0,111370.0,8.984e-05]
[1760615601641,6.20538729,111380.0,111370.0,8.984e-05]
[1760615604689,6.0833109,111380.0,111370.0,8.984e-05]
[1760615605113,6.04712862,111380.0,111370.0,8.984e-05]
[1760615605539,6.0833109,111380.0,111370.0,8.984e-05]
[1760615605759,6.05630644,111380.0,111370.0,8.984e-05]
[1760615612454,6.06449804,111380.0,111370.0,8.984e-05]
[1760615612680,6.09150213,111380.0,111370.0,8.984e-05]
[1760615612898,6.18118421,111380.0,111370.0,8.984e-05]
[1760615613121,6.19795206,111380.0,111370.0,8.984e-05]
[1760615613574,6.21390999,111380.0,111370.0,8.984e-05]
[1760615614056,6.19714214,111380.0,111370.0,8.984e-05]
[1760615614738,6.01302785,111380.0,111370.0,8.984e-05]
[1760615614962,6.1598042,111380.0,111370.0,8.984e-05]
[1760615615191,6.15172359,111380.0,111370.0,8.984e-05]
[1760615618763,6.15167618,111380.0,111370.0,8.984e-05]
[1760615620626,5.59507588,111380.0,111370.0,8.984e-05]
[1760615620864,0.21129544,111380.0,111370.0,8.984e-05]
[1760615621113,0.59805332,111380.0,111370.0,0.17967141]
[1760615621356,0.32892762,111380.0,111370.0,0.17967141]
[1760615621600,0.34574773,111380.0,111370.0,0.17967141]
[1760615621855,0.13,111380.0,111370.0,0.17967141]
[1760615622099,0.13,111380.0,111370.0,0.28731968]
[1760615622342,0.13,111380.0,111370.0,0.26936153]
[1760615622861,0.34104582,111410.0,111400.0,0.17953321]
[1760615623122,0.64056331,111410.0,111400.0,0.17953321]
[1760615623362,0.29951709,111410.0,111400.0,0.17953321]
[1760615623618,0.68300062,111410.0,111400.0,0.17953321]
[1760615623870,0.72074638,111410.0,111400.0,0.17953321]
[1760615624127,0.50504701,111410.0,111400.0,0.17953321]
[1760615624628,0.72074638,111410.0,111400.0,0.17953321]
[1760615624838,0.15774576,111410.0,111400.0,0.17953321]
[1760615625066,0.72074638,111410.0,111400.0,0.17953321]
[1760615625263,0.54122929,111410.0,111400.0,0.17953321]
[1760615625766,0.15774576,111410.0,111400.0,0.17953321]
[1760615625992,0.33726285,111410.0,111400.0,0.17953321]
[1760615626209,0.72074638,111410.0,111400.0,0.17953321]
[1760615626457,0.54122929,111410.0,111400.0,0.17953321]
[1760615626904,0.12156348,111410.0,111400.0,0.19748653]
[1760615638454,0.30108057,111410.0,111400.0,0.19748653]
[1760615639169,0.12156348,111410.0,111400.0,0.19748653]
[1760615639387,0.6845641,111410.0,111400.0,0.19748653]
[1760615639842,0.12156348,111410.0,111400.0,0.19748653]
[1760615640487,0.30108057,111410.0,111400.0,0.19748653]
[1760615641527,0.6845641,111410.0,111400.0,0.19748653]
[1760615642407,0.30108057,111410.0,111400.0,0.19748653]
[1760615642619,0.6845641,111410.0,111400.0,0.19748653]
[1760615644380,0.43885225,111410.0,111400.0,0.19748653]
[1760615644596,0.46885225,111410.0,111400.0,0.19748653]
[1760615645251,0.20951709,111410.0,111400.0,0.19748653]
[1760615645519,0.59300062,111410.0,111400.0,0.19748653]
[1760615645948,0.03,111410.0,111400.0,0.19748653]
[1760615647247,0.20951709,111410.0,111400.0,0.19748653]
[1760615647461,0.59300062,111410.0,111400.0,0.19748653]
[1760615648344,0.41348353,111410.0,111400.0,0.19748653]
[1760615649422,0.43282668,111410.0,111400.0,0.19748653]
[1760615649639,0.61234377,111410.0,111400.0,0.19748653]
[1760615651743,0.1795489,111400.0,111380.0,0.18852019]
[1760615651978,0.56303286,111390.0,111380.0,0.27821031]
[1760615652198,0.58237601,111390.0,111380.0,0.36849031]
[1760615652430,0.01934315,111390.0,111380.0,0.36849031]
[1760615652661,0.01934315,111390.0,111380.0,0.75197384]
[1760615653335,0.01934315,111390.0,111380.0,1.09297384]
[1760615653563,0.61951194,111420.0,111410.0,0.17951709]
[1760615653791,0.16504426,111420.0,111410.0,0.19746879]
[1760615654022,0.13940026,111420.0,111410.0,0.19746879]
[1760615654249,0.16209776,111420.0,111410.0,0.19746879]
[1760615654469,0.16348082,111420.0,111410.0,0.67064244]
[1760615654689,0.13940026,111420.0,111410.0,0.65269074]
[1760615654878,0.13945032,111420.0,111410.0,0.65269074]
[1760615655561,0.12005006,111420.0,111410.0,0.65269074]
[1760615656441,5.006e-05,111420.0,111410.0,0.99269074]
[1760615658674,5.006e-05,111420.0,111410.0,0.99369074]
[1760615658894,5.006e-05,111420.0,111410.0,1.37717427]
[1760615659335,1e-08,111420.0,111410.0,1.37717427]
[1760615659559,0.0002,111450.0,111410.0,1.37717427]
[1760615659560,0.61429596,111470.0,111460.0,0.17943656]
[1760615659775,0.72434603,111470.0,111460.0,0.17943656]
[1760615659990,0.76052831,111470.0,111460.0,0.17943656]
[1760615660208,0.76052831,111470.0,111450.0,0.26971868]
[1760615660421,0.76052831,111470.0,111450.0,0.3594088]
[1760615660637,0.76209103,111470.0,111460.0,0.17943656]
[1760615661291,0.13099478,111470.0,111460.0,0.17943656]
[1760615661536,0.11161279,111470.0,111460.0,0.28707033]
[1760615661757,0.11105007,111470.0,111460.0,0.26912668]
[1760615662208,0.4945336,111470.0,111460.0,0.35940668]
[1760615662425,0.11005007,111470.0,111460.0,0.35940668]
[1760615662640,0.4935336,111470.0,111460.0,0.35940668]
[1760615663086,0.11005007,111470.0,111460.0,0.35940668]
[1760615663571,0.4935336,111470.0,111460.0,0.35940668]
[1760615664225,0.11005007,111470.0,111460.0,0.35940668]
[1760615665329,0.11297618,111470.0,111460.0,0.35940668]
[1760615668649,0.11297618,111470.0,111460.0,0.74289021]
[1760615669088,0.11297618,111470.0,111460.0,0.35940668]
[1760615669309,0.49645971,111470.0,111460.0,0.35940668]
[1760615670566,0.11297618,111470.0,111460.0,0.35940668]
[1760615671610,0.11297618,111470.0,111460.0,0.35936668]
[1760615674646,0.49645971,111470.0,111460.0,0.35936668]
[1760615674871,0.11297618,111470.0,111460.0,0.35936668]
[1760615678335,0.11297618,111470.0,111460.0,0.74285021]
[1760615678587,0.00297618,111470.0,111460.0,0.74285021]
[1760615681170,0.00297618,111470.0,111460.0,0.74385021]
[1760615683589,0.00297618,111470.0,111460.0,1.04071798]
[1760615684980,0.00297618,111470.0,111460.0,1.03971798]
[1760615685178,0.00297618,111470.0,111460.0,1.04071798]
[1760615689623,0.00297618,111470.0,111460.0,0.70036668]
[1760615690508,0.00297618,111470.0,111460.0,0.69936668]
[1760615690961,0.00297618,111470.0,111460.0,0.70036668]
[1760615692261,0.00297618,111470.0,111460.0,0.36036668]
[1760615693136,0.00297618,111470.0,111460.0,0.70071798]
[1760615695773,0.00297618,111470.0,111460.0,1.04071798]
[1760615702562,0.3403513,111500.0,111490.0,0.17938828]
[1760615702775,0.65022514,111500.0,111490.0,0.17938828]
[1760615703180,0.65197993,111500.0,111490.0,0.17938828]
[1760615704080,0.66094853,111500.0,111490.0,0.17938828]
[1760615705492,0.68127248,111500.0,111490.0,0.17938828]
[1760615705974,0.34092118,111500.0,111490.0,0.17938828]
[1760615706195,0.15257934,111500.0,111490.0,0.1973271]
[1760615706436,0.15257934,111500.0,111490.0,0.28701722]
[1760615706669,0.15257934,111500.0,111490.0,0.2690784]
[1760615707536,0.13225539,111500.0,111490.0,0.2690784]
[1760615708447,0.00225539,111500.0,111490.0,0.2690784]
[1760615712528,0.00225539,111500.0,111490.0,0.6094297]
[1760615713639,0.00225539,111500.0,111490.0,0.2690784]
[1760615713849,0.00225539,111500.0,111490.0,0.6094297]
[1760615714092,0.00225539,111500.0,111490.0,0.6104297]
[1760615714778,0.00225539,111500.0,111490.0,0.2700784]
[1760615721785,0.56197888,111500.0,111490.0,0.09069012]
[1760615722049,0.56197888,111500.0,111490.0,0.0912]
[1760615722327,0.56197888,111500.0,111490.0,0.001]
[1760615722549,0.59816116,111500.0,111490.0,0.001]
[1760615722771,0.17940437,111480.0,111470.0,0.27859001]
[1760615723011,0.3603513,111480.0,111470.0,0.36828013]
[1760615723218,0.02,111480.0,111470.0,0.27808013]
[1760615723439,0.19940437,111480.0,111470.0,0.35931059]
[1760615724031,0.19940437,111480.0,111470.0,0.26911059]
[1760615724233,0.19940437,111480.0,111470.0,0.35931059]
[1760615724595,0.02,111480.0,111470.0,0.26911059]
[1760615724899,0.02,111480.0,111470.0,0.35931059]
[1760615725330,0.02,111480.0,111470.0,0.26911059]
[1760615725532,0.02,111480.0,111470.0,0.35931059]
[1760615727667,0.19940437,111480.0,111470.0,0.35931059]
[1760615728340,0.02058503,111480.0,111470.0,0.35931059]
[1760615729687,0.29233909,111490.0,111480.0,0.17940437]
[1760615729909,0.60174189,111490.0,111480.0,0.17940437]
[1760615730113,0.60232685,111490.0,111480.0,0.17940437]
[1760615730543,0.13058496,111490.0,111480.0,0.17940437]
[1760615731197,0.30997324,111490.0,111480.0,0.17940437]
[1760615733903,0.13211641,111490.0,111480.0,0.17940437]
[1760615734087,0.15211641,111490.0,111480.0,0.17940437]
[1760615735702,0.02,111490.0,111480.0,0.17940437]
[1760615736761,0.53973958,111490.0,111460.0,0.18840071]
[1760615736978,0.51975567,111480.0,111470.0,0.17942047]
[1760615737189,0.63975567,111480.0,111470.0,0.17942047]
[1760615737636,0.29940437,111480.0,111470.0,0.17942047]
[1760615741888,0.29940437,111480.0,111470.0,0.26966047]
[1760615743340,0.12,111480.0,111470.0,0.26966047]
[1760615743546,0.50299064,111480.0,111470.0,0.26966047]
[1760615744506,0.68239501,111480.0,111470.0,0.26966047]
[1760615745860,0.50299064,111480.0,111470.0,0.26966047]
[1760615746495,0.12,111480.0,111470.0,0.26966047]
[1760615746911,0.50299064,111480.0,111470.0,0.26966047]
[1760615750243,0.38299064,111490.0,111480.0,0.17940437]
[1760615750445,0.50299064,111490.0,111480.0,0.17940437]
[1760615750865,0.68237892,111490.0,111480.0,0.17940437]
[1760615760354,0.12,111490.0,111480.0,0.17940437]
[1760615760796,0.68237892,111490.0,111480.0,0.17940437]
[1760615761606,0.68237892,111490.0,111480.0,0.15958152]
[1760615762653,0.50299064,111490.0,111480.0,0.15958152]
[1760615762857,0.68237892,111490.0,111480.0,0.15958152]
[1760615765566,0.29938828,111490.0,111480.0,0.15958152]
[1760615765773,0.50299064,111490.0,111480.0,0.15958152]
[1760615766196,0.68237892,111490.0,111480.0,0.15958152]
[1760615767571,0.12,111490.0,111480.0,0.17752195]
[1760615767782,0.25146292,111500.0,111490.0,0.17938828]
[1760615768014,0.01206292,111500.0,111490.0,0.65257892]
[1760615768224,0.0105006,111500.0,111490.0,0.74226904]
[1760615768431,0.01108548,111500.0,111490.0,0.3592784]
[1760615771033,0.01108548,111500.0,111490.0,0.74226904]
[1760615773260,0.00108548,111500.0,111490.0,0.74226904]
[1760615774628,0.00108548,111500.0,111490.0,0.3592784]
[1760615780429,0.00108548,111500.0,111490.0,0.74226904]
[1760615780830,0.00108548,111500.0,111490.0,0.3592784]
[1760615781046,0.00108548,111500.0,111490.0,0.74226904]
[1760615781469,0.00108548,111500.0,111490.0,0.3580784]
[1760615783756,0.00108548,111500.0,111490.0,0.74106904]
[1760615788448,0.00108548,111500.0,111490.0,0.6980784]
[1760615788672,0.00108548,111500.0,111490.0,1.08106904]
[1760615789492,0.00108548,111500.0,111490.0,1.08206904]
[1760615789696,0.00108548,111500.0,111490.0,1.08566373]
[1760615790647,0.00108548,111500.0,111490.0,1.08466373]
[1760615791073,0.00108548,111500.0,111490.0,1.08566373]
[1760615791530,1e-08,111510.0,111500.0,0.34]
[1760615791752,1e-08,111510.0,111500.0,1.37504359]
[1760615791971,1e-08,111510.0,111500.0,0.60906231]
[1760615792195,1e-08,111510.0,111500.0,0.64524459]
[1760615792416,1e-08,111510.0,111500.0,0.67219878]
[1760615793103,1e-08,111520.0,111510.0,0.98151967]
[1760615793329,1e-08,111520.0,111510.0,1.16140979]
[1760615794542,1e-08,111520.0,111510.0,1.50140979]
[1760615795443,1e-08,111520.0,111510.0,1.50240979]
[1760615795887,1e-08,111520.0,111510.0,1.41220979]
[1760615796089,1e-08,111520.0,111510.0,1.50236979]
[1760615798032,1e-08,111520.0,111510.0,1.41220979]
[1760615798244,0.00116951,111520.0,111510.0,1.50236979]
[1760615798901,0.00116951,111520.0,111510.0,1.46618751]
[1760615800942,0.00116951,111520.0,111510.0,1.49314048]
[1760615805486,0.00116951,111520.0,111510.0,1.06712098]
[1760615805912,0.18823976,111560.0,111540.0,0.17930787]
[1760615806099,0.64833618,111560.0,111550.0,0.09016]
[1760615806552,0.3083744,111560.0,111550.0,0.26945179]
[1760615806758,0.3083744,111560.0,111550.0,0.09016]
[1760615806941,0.31071235,111560.0,111550.0,0.26945179]
[1760615807362,0.31071235,111560.0,111550.0,0.09016]
[1760615807566,0.12247259,111560.0,111550.0,0.35914191]
[1760615812956,0.1788762,111570.0,111560.0,0.17927572]
[1760615813169,0.04,111570.0,111560.0,0.19720329]
[1760615813393,0.04058433,111570.0,111560.0,0.28689341]
[1760615813606,0.04058433,111570.0,111560.0,0.26896584]
[1760615813818,0.07664233,111570.0,111560.0,0.26896584]
[1760615814678,0.04058433,111570.0,111560.0,0.26896584]
[1760615817340,0.0771483,111570.0,111560.0,0.26896584]
[1760615818647,0.25640795,111570.0,111560.0,0.26896584]
[1760615819076,0.0771483,111570.0,111560.0,0.26896584]
[1760615819287,0.25640795,111570.0,111560.0,0.26896584]
[1760615819715,0.0771483,111570.0,111560.0,0.26896584]
[1760615819929,0.25640795,111570.0,111560.0,0.26896584]
[1760615820782,0.0771483,111570.0,111560.0,0.26896584]
[1760615821198,0.25640795,111570.0,111560.0,0.35908584]
[1760615821416,0.0771483,111570.0,111560.0,0.26896584]
[1760615821823,0.0771483,111570.0,111560.0,0.35908584]
[1760615822057,0.0771483,111570.0,111560.0,0.26896584]
[1760615822262,0.0771483,111570.0,111560.0,0.35908584]
[1760615822886,0.0771483,111570.0,111560.0,0.26896584]
[1760615823100,0.0771483,111570.0,111560.0,0.35908584]
[1760615824199,0.03232056,111600.0,111580.0,0.03618228]
[1760615824473,0.05355224,111610.0,111600.0,0.51921146]
[1760615824474,0.0052,111610.0,111600.0,0.51921146]
[1760615824710,0.0052,111610.0,111600.0,0.85917324]
[1760615825137,0.0052,111610.0,111600.0,0.20614566]
[1760615825360,0.0052,111610.0,111600.0,0.26890158]
[1760615828693,0.0052,111610.0,111600.0,0.08969012]
[1760615828912,0.17921146,111600.0,111590.0,0.02693824]
[1760615829124,0.09032,111600.0,111590.0,0.28684039]
[1760615829350,0.09032,111600.0,111590.0,0.26891764]
[1760615832609,0.18596689,111610.0,111590.0,0.26891764]
[1760615832829,0.09028,111600.0,111590.0,0.26891764]
[1760615833056,0.09203244,111600.0,111590.0,0.26891764]
[1760615834083,0.00175244,111600.0,111590.0,0.26891764]
[1760615837194,0.1809639,111600.0,111590.0,0.08969012]
[1760615837447,0.53092568,111600.0,111590.0,0.26891764]
[1760615837669,0.1909639,111600.0,111590.0,0.26891764]
[1760615837906,0.53092568,111600.0,111590.0,0.26891764]
[1760615838135,0.1909639,111600.0,111590.0,0.26891764]
[1760615839212,0.2812039,111600.0,111590.0,0.26891764]
[1760615840046,0.01175244,111600.0,111590.0,0.26891764]
[1760615840295,0.10199244,111600.0,111590.0,0.26891764]
[1760615840479,0.01175244,111600.0,111590.0,0.26891764]
[1760615840903,0.1909639,111600.0,111590.0,0.26891764]
[1760615842629,0.01175244,111600.0,111590.0,0.26891764]
[1760615843074,0.1909639,111600.0,111590.0,0.26891764]
[1760615843294,0.01175244,111600.0,111590.0,0.26891764]
[1760615843514,0.1909639,111600.0,111590.0,0.26891764]
[1760615844192,0.01175244,111600.0,111590.0,0.26891764]
[1760615844410,0.00175244,111600.0,111590.0,0.26891764]
[1760615847375,0.00175244,111600.0,111590.0,0.60887942]
[1760615847611,0.00175244,111600.0,111590.0,0.26891764]
[1760615849160,0.58024091,111620.0,111600.0,0.17921146]
[1760615849384,0.17919552,111610.0,111600.0,0.01792114]
[1760615849512,0.17919552,111610.0,111600.0,0.1971326]
[1760615849735,0.17977953,111610.0,111600.0,0.1971326]
[1760615850148,0.17977953,111610.0,111600.0,0.01792114]
[1760615850359,0.17977953,111610.0,111600.0,0.1971326]
[1760615851300,0.00058401,111610.0,111600.0,0.1971326]
[1760615852645,0.01058401,111610.0,111600.0,0.1971326]
[1760615855235,0.5297412,111610.0,111600.0,0.01792114]
[1760615855514,0.17921146,111600.0,111590.0,0.26891764]
[1760615855717,0.52917324,111600.0,111590.0,0.26891764]
[1760615855909,0.34996178,111600.0,111590.0,0.26891764]
[1760615856125,0.01,111600.0,111590.0,0.26891764]
[1760615857183,0.18921146,111600.0,111590.0,0.26891764]
[1760615857600,0.01,111600.0,111590.0,0.26891764]
[1760615860371,0.18921146,111600.0,111590.0,0.26891764]
[1760615860638,0.01,111600.0,111590.0,0.26891764]
[1760615861283,0.17977942,111610.0,111600.0,0.17921146]
[1760615861493,0.19977942,111610.0,111600.0,0.1971326]
[1760615861701,0.02058401,111610.0,111600.0,0.1971326]
[1760615861910,0.19977942,111610.0,111600.0,0.1971326]
[1760615862742,0.19977942,111610.0,111600.0,0.01792114]
[1760615863194,0.5397412,111610.0,111600.0,0.01792114]
[1760615864106,0.17921146,111600.0,111590.0,0.26891764]
[1760615865000,0.51917324,111600.0,111590.0,0.26891764]
[1760615865912,0.17921146,111600.0,111590.0,0.26891764]
[1760615866574,0.18921146,111600.0,111590.0,0.26891764]
[1760615867609,0.57139535,111600.0,111590.0,0.26891764]
[1760615867900,0.18921146,111600.0,111590.0,0.26891764]
[1760615868144,0.57139535,111600.0,111590.0,0.26891764]
[1760615868613,0.01,111600.0,111590.0,0.26891764]
[1760615868821,0.17977942,111610.0,111600.0,0.17921146]
[1760615869036,0.69196331,111610.0,111600.0,0.17921146]
[1760615869715,0.69196331,111610.0,111590.0,0.26891764]
[1760615870345,0.30977942,111610.0,111590.0,0.26891764]
[1760615870557,0.69196331,111610.0,111590.0,0.26891764]
[1760615871657,0.17921146,111600.0,111590.0,0.26891764]
[1760615871872,0.56196331,111610.0,111590.0,0.26891764]
[1760615872094,0.69196331,111610.0,111590.0,0.26891764]
[1760615876719,0.69196331,111610.0,111600.0,0.17921146]
[1760615879535,0.13058401,111610.0,111600.0,0.26890158]
[1760615879677,0.00058401,111610.0,111600.0,0.26890158]
[1760615884227,0.00058401,111610.0,111600.0,0.65108547]
[1760615884646,0.00058401,111610.0,111600.0,0.74120547]
[1760615884858,0.00058401,111610.0,111600.0,0.77738775]
[1760615885881,0.00058401,111610.0,111600.0,0.81443235]
[1760615886095,0.00058401,111610.0,111600.0,0.81543235]
[1760615887741,0.00058401,111610.0,111600.0,0.36002158]
[1760615889667,0.56196331,111610.0,111600.0,0.36002158]
[1760615889884,0.57196331,111610.0,111600.0,0.09069012]
[1760615890331,0.35804618,111610.0,111600.0,0.26990158]
[1760615890543,0.53724159,111610.0,111600.0,0.26990158]
[1760615891294,0.53724159,111610.0,111600.0,0.09069012]
[1760615891499,0.53724159,111610.0,111600.0,0.08969012]
[1760615892335,0.5713793,111610.0,111600.0,0.26890158]
[1760615895668,0.01,111610.0,111600.0,0.26890158]
[1760615895883,0.74738389,111620.0,111610.0,0.17919541]
[1760615896093,1.00656324,111620.0,111600.0,0.26890158]
[1760615896543,0.38218389,111610.0,111600.0,0.26890158]
[1760615897999,0.92656324,111620.0,111610.0,0.17919541]
[1760615898205,0.97656324,111620.0,111610.0,0.17919541]
[1760615899244,0.97656324,111620.0,111600.0,0.26890158]
[1760615899453,0.59437935,111620.0,111600.0,0.26890158]
[1760615899663,0.97656324,111620.0,111600.0,0.26890158]
[1760615899881,0.97656324,111620.0,111610.0,0.19711495]
[1760615900104,0.25437935,111620.0,111610.0,0.19711495]
[1760615901202,0.25437935,111620.0,111610.0,0.01791954]
[1760615901464,0.63714718,111620.0,111610.0,0.01791954]
[1760615902416,0.17919541,111610.0,111600.0,0.28682272]
[1760615902599,0.17919541,111610.0,111600.0,0.26890158]
[1760615903624,0.5613793,111610.0,111600.0,0.08969012]
[1760615903826,0.5713793,111610.0,111600.0,0.08969012]
[1760615905271,0.17923714,111600.0,111590.0,0.10808275]
[1760615905478,0.59142103,111600.0,111590.0,0.19792292]
[1760615905677,0.59142103,111600.0,111590.0,0.18000017]
[1760615907282,0.03,111600.0,111590.0,0.35922769]
[1760615907928,0.38218389,111610.0,111600.0,0.17921146]
[1760615908138,0.36578394,111620.0,111610.0,0.17919541]
[1760615908348,1.05714718,111620.0,111610.0,0.17919541]
[1760615908781,0.87796783,111620.0,111610.0,0.17919541]
[1760615908994,1.05714718,111620.0,111610.0,0.17919541]
[1760615910059,1.05714718,111620.0,111600.0,0.35910158]
[1760615910492,1.05714718,111620.0,111610.0,0.17919541]
[1760615911347,0.67496329,111620.0,111610.0,0.17919541]
[1760615911556,0.33496329,111620.0,111610.0,0.17919541]
[1760615911737,0.71714718,111620.0,111610.0,0.17919541]
[1760615916685,0.71714718,111620.0,111600.0,0.35910158]
[1760615917306,0.71714718,111620.0,111610.0,0.17919541]
[1760615918478,0.71714718,111620.0,111600.0,0.35910158]
[1760615918890,0.71714825,111620.0,111610.0,0.17919541]
[1760615919250,0.71714718,111620.0,111610.0,0.19711495]
[1760615919459,0.71714718,111620.0,111610.0,0.01791954]
[1760615920445,0.33496329,111620.0,111610.0,0.19711495]
[1760615921286,0.71714718,111620.0,111610.0,0.19711495]
[1760615921761,0.71714718,111620.0,111610.0,0.01791954]
[1760615921972,0.17919541,111610.0,111600.0,0.35905745]
[1760615923008,0.5813793,111610.0,111600.0,0.17985012]
[1760615923222,0.5813793,111610.0,111600.0,0.35906158]
[1760615923432,0.17921146,111600.0,111590.0,0.09031005]
[1760615923623,0.57139535,111600.0,111590.0,0.35922769]
[1760615923868,0.18921146,111600.0,111590.0,0.35922769]
[1760615924748,0.18921146,111600.0,111590.0,0.36022769]
[1760615927135,0.01,111600.0,111590.0,0.36022769]
[1760615927802,0.18921146,111600.0,111590.0,0.36022769]
[1760615928627,0.01,111600.0,111590.0,0.36022769]
[1760615928837,0.2494,111610.0,111600.0,0.17921146]
[1760615929043,0.2794,111610.0,111600.0,0.17921146]
[1760615929227,0.45859541,111610.0,111600.0,0.17921146]
[1760615929853,0.2794,111610.0,111600.0,0.17921146]
[1760615930275,0.45859541,111610.0,111600.0,0.17921146]
[1760615931110,0.2794,111610.0,111600.0,0.26890158]
[1760615931287,0.2494,111610.0,111600.0,0.26890158]
[1760615931504,0.42859541,111610.0,111600.0,0.26890158]
[1760615932048,0.2494,111610.0,111600.0,0.26890158]
[1760615932503,0.42859541,111610.0,111600.0,0.26890158]
[1760615933179,0.43859541,111610.0,111600.0,0.26890158]
[1760615933388,0.43859541,111610.0,111600.0,0.35902158]
[1760615934631,0.43859541,111610.0,111600.0,0.17981012]
[1760615934789,0.43859541,111610.0,111600.0,0.35902158]
[1760615935220,0.43859541,111610.0,111600.0,0.26890158]
[1760615939461,0.2594,111610.0,111600.0,0.26890158]
[1760615940208,0.43859541,111610.0,111600.0,0.26890158]
[1760615940707,0.2594,111610.0,111600.0,0.26890158]
[1760615941345,0.43859541,111610.0,111600.0,0.26890158]
[1760615943386,0.18919541,111610.0,111600.0,0.26890158]
[1760615943819,0.01,111610.0,111600.0,0.26890158]